bitfinex-derivatives/quotes_SOLF0:USTF0_20250228
["timestamp","ask_amount","ask_price","bid_price","bid_amount"]
[1740712781530,12.0335,130.6,130.44,1.6659]
[1740712782232,7.71770548,130.53,130.51,0.0429257]
[1740712782537,7.6454,130.52,130.43,0.5944]
[1740712783031,7.6454,130.52,130.42,0.73634345]
[1740712783531,0.05740009,130.48,130.42,0.73634345]
[1740712783730,0.05740009,130.48,130.41,208.38]
[1740712784434,0.05740009,130.48,130.43,7.6736]
[1740712785129,7.72830009,130.48,130.43,7.6736]
[1740712785329,0.05740009,130.48,130.44,7.673]
[1740712787522,0.05740009,130.48,130.45,7.6721]
[1740712787725,0.05740009,130.48,130.41,190.3637697]
[1740712788432,0.05740009,130.48,130.44,7.6729]
[1740712789734,0.05740009,130.48,130.41,190.3637697]
[1740712790229,0.05740009,130.48,130.42,7.6739]
[1740712790434,0.05740009,130.48,130.41,190.3637697]
[1740712791938,0.05740009,130.48,130.42,1.6525]
[1740712792137,190.0,130.55,130.42,9.65387955]
[1740712792339,15.5797,130.56,130.49,7.6697]
[1740712792641,42.03433267,130.58,130.46,15.92]
[1740712792841,42.03433267,130.58,130.47,2.3382]
[1740712793436,42.03433267,130.58,130.51,0.05009567]
[1740712793437,0.05128399,130.54,130.51,0.05009567]
[1740712798834,3.8973,130.67,130.51,0.05009567]
[1740712799036,7.9497,130.66,130.47,2.3382]
[1740712799637,6.87818551,130.45,130.44,7.99800816]
[1740712799840,7.9497,130.66,130.44,48.24449549]
[1740712800040,0.05133415,130.46,130.45,1.34648733]
[1740712800235,1.4085753,130.65,130.44,23.89800816]
[1740712800437,0.04818063,130.47,130.44,23.95616115]
[1740712800743,1.40870722,130.64,130.44,23.89800816]
[1740712801037,7.9497,130.66,130.44,23.95206017]
[1740712801038,0.05286861,130.47,130.44,23.95206017]
[1740712801238,1.40873387,130.65,130.44,23.89800816]
[1740712801438,0.04845789,130.47,130.44,23.95534218]
[1740712801642,15.9,130.61,130.43,75.78290551]
[1740712801837,0.05822079,130.47,130.43,75.78290551]
[1740712802043,0.05822079,130.47,130.44,0.05303488]
[1740712802239,7.8131,130.59,130.44,0.05303488]
[1740712802439,0.04967402,130.47,130.44,0.05303488]
[1740712802745,7.8131,130.51,130.42,0.70795673]
[1740712803042,7.8131,130.51,130.44,0.05740729]
[1740712803043,0.05114784,130.47,130.44,0.05740729]
[1740712803645,7.72284784,130.47,130.41,190.3637697]
[1740712803842,0.05114784,130.47,130.4,31.43841517]
[1740712804042,7.6719,130.46,130.4,31.43841517]
[1740712804236,0.05114784,130.47,130.4,31.43841517]
[1740712804441,11.894,130.51,130.33,224.3]
[1740712804638,190.0,130.5,130.33,224.3]
[1740712804942,0.05292713,130.43,130.41,0.05127679]
[1740712805142,190.0,130.5,130.34,1.36203314]
[1740712805341,190.0,130.5,130.41,0.05127679]
[1740712805544,0.05424352,130.43,130.41,0.05127679]
[1740712805740,190.0,130.5,130.34,1.36039515]
[1740712806041,0.05629333,130.43,130.41,0.05127679]
[1740712806241,190.0,130.5,130.41,0.05127679]
[1740712806440,11.894,130.51,130.34,1.36039515]
[1740712806945,11.894,130.51,130.33,224.3]
[1740712807141,11.894,130.51,130.34,1.35656368]
[1740712807539,0.05309068,130.44,130.41,0.05851441]
[1740712807847,11.894,130.51,130.34,1.35656368]
[1740712808047,0.04940336,130.44,130.41,0.05343582]
[1740712808247,11.894,130.51,130.34,1.35656368]
[1740712808549,0.04952059,130.44,130.41,0.05291747]
[1740712808739,0.04952059,130.44,130.34,1.36100914]
[1740712808947,0.05781533,130.4,130.37,0.0552884]
[1740712809146,7.6715,130.47,130.34,1.36100914]
[1740712809347,0.05162831,130.38,130.36,0.05747884]
[1740712809648,11.894,130.51,130.34,1.36100914]
[1740712809842,0.05702399,130.38,130.36,8.06399683]
[1740712810039,11.894,130.51,130.36,8.00567452]
[1740712810040,7.6702,130.49,130.36,8.00567452]
[1740712810240,11.894,130.51,130.36,8.00567452]
[1740712810241,0.05846834,130.38,130.36,8.05569589]
[1740712810445,7.6707,130.48,130.41,0.05091717]
[1740712810746,7.6707,130.48,130.33,224.3]
[1740712810747,11.894,130.51,130.33,224.3]
[1740712810937,11.894,130.51,130.43,0.05341113]
[1740712811138,0.04880123,130.43,130.33,224.3]
[1740712811341,11.894,130.51,130.33,224.3]
[1740712811545,7.6724,130.46,130.33,224.3]
[1740712811740,3.9472,130.45,130.33,224.3]
[1740712812049,3.9823,130.44,130.33,224.3]
[1740712812349,0.05317496,130.4,130.38,0.05232986]
[1740712815742,7.9602,130.55,130.38,23.05232986]
[1740712815945,15.627,130.55,130.39,0.1193]
[1740712816140,7.9602,130.55,130.39,0.1193]
[1740712816342,3.7534,130.54,130.39,0.1193]
[1740712816548,3.7534,130.54,130.4,1.36302681]
[1740712816747,3.7534,130.54,130.41,15.88]
[1740712816948,0.0534789,130.48,130.46,0.05185635]
[1740712817142,0.0534789,130.48,130.41,15.88]
[1740712817343,3.7534,130.54,130.41,15.88]
[1740712817548,3.7534,130.54,130.46,0.05043208]
[1740712817850,0.05710903,130.49,130.41,15.88]
[1740712818252,0.05319864,130.46,130.44,0.05496924]
[1740712818549,7.6688,130.52,130.41,15.88]
[1740712818750,3.7534,130.54,130.41,15.88]
[1740712818751,0.05851807,130.46,130.44,0.04985826]
[1740712819050,3.7534,130.54,130.41,15.88]
[1740712819255,0.05447094,130.46,130.44,0.0524558]
[1740712819450,3.7534,130.54,130.44,0.0524558]
[1740712819642,0.0489826,130.46,130.41,15.88]
[1740712819846,3.7534,130.54,130.41,15.88]
[1740712820047,0.0546465,130.45,130.42,0.05867903]
[1740712820341,3.7534,130.54,130.41,15.88]
[1740712820546,0.05186597,130.45,130.42,0.05546902]
[1740712820847,7.6687,130.52,130.42,0.05626039]
[1740712821048,3.7534,130.54,130.41,15.88]
[1740712821244,0.05277107,130.48,130.45,0.05814616]
[1740712821449,4.0574,130.55,130.45,0.05814616]
[1740712821648,4.0574,130.55,130.41,15.88]
[1740712821848,4.0574,130.55,130.42,1.36359308]
[1740712822553,0.05142602,130.5,130.47,0.04829988]
[1740712822942,0.05142602,130.5,130.42,1.36359308]
[1740712823146,4.0574,130.55,130.47,0.0496049]
[1740712823343,4.0574,130.55,130.42,1.36359308]
[1740712823554,0.04959272,130.52,130.5,0.05675065]
[1740712823750,0.04959272,130.52,130.42,1.36359308]
[1740712823951,4.0574,130.55,130.5,0.05515952]
[1740712824254,0.05258776,130.48,130.42,1.36359308]
[1740712824551,4.0574,130.55,130.44,0.05071452]
[1740712824750,0.04894658,130.46,130.44,0.05071452]
[1740712824948,4.0574,130.55,130.42,1.36359308]
[1740712825144,0.05268609,130.46,130.44,0.04953093]
[1740712825352,4.1362,130.54,130.42,1.36359308]
[1740712825550,0.05512903,130.46,130.42,1.36359308]
[1740712825751,4.1362,130.54,130.47,0.05488303]
[1740712825952,4.1362,130.54,130.41,15.88]
[1740712826251,0.05803627,130.52,130.49,0.05211274]
[1740712826452,4.1362,130.54,130.41,15.88]
[1740712826654,0.05138942,130.52,130.49,0.04835092]
[1740712826952,0.05435589,130.52,130.41,15.88]
[1740712827152,8.0519,130.54,130.49,0.05408177]
[1740712827349,8.0519,130.54,130.42,15.86]
[1740712827555,0.05484129,130.47,130.42,15.86]
[1740712827753,8.0519,130.54,130.42,15.86]
[1740712828554,0.05591694,130.49,130.47,0.05122662]
[1740712828757,8.0519,130.54,130.47,0.05122662]
[1740712829053,0.0563349,130.52,130.47,0.05122662]
[1740712830454,7.7249349,130.52,130.47,0.05122662]
[1740712830955,0.0563349,130.52,130.47,0.05122662]
[1740712831746,0.0563349,130.52,130.4,8.00199283]
[1740712831949,190.0,130.51,130.39,208.5]
[1740712832144,7.6723,130.46,130.39,208.5]
[1740712832352,4.0576,130.45,130.37,0.70914229]
[1740712832557,8.1752,130.45,130.36,15.84]
[1740712832957,0.05809951,130.42,130.39,0.05296185]
[1740712836758,0.05809951,130.42,130.39,7.72886185]
[1740712837359,0.05809951,130.42,130.39,0.05296185]
[1740712838560,7.6752,130.41,130.31,208.44]
[1740712838751,0.05809951,130.42,130.31,208.44]
[1740712838956,193.752,130.44,130.31,208.44]
[1740712839455,0.05874991,130.39,130.31,208.44]
[1740712839761,7.6758,130.4,130.33,7.6792]
[1740712839961,0.05842752,130.36,130.31,208.44]
[1740712840159,193.752,130.44,130.31,208.44]
[1740712840461,0.05485841,130.35,130.31,208.44]
[1740712840660,0.05107679,130.34,130.33,7.6792]
[1740712840954,190.0,130.43,130.31,208.44]
[1740712841257,190.0,130.42,130.34,7.6788]
[1740712841462,0.05862204,130.38,130.31,208.44]
[1740712841962,0.05862204,130.38,130.34,7.6786]
[1740712842163,0.05862204,130.38,130.31,208.44]
[1740712842458,0.05862204,130.38,130.33,1.4495]
[1740712842658,23.02,130.38,130.22,31.43841517]
[1740712842857,8.08183138,130.37,130.22,31.43841517]
[1740712843058,8.0321,130.37,130.22,31.43841517]
[1740712843262,0.04944433,130.31,130.22,31.43841517]
[1740712843467,8.0321,130.37,130.22,31.43841517]
[1740712843662,0.05706745,130.31,130.22,31.43841517]
[1740712843963,15.84,130.34,130.22,31.43841517]
[1740712844163,0.05130362,130.28,130.22,31.43841517]
[1740712844359,8.00890362,130.28,130.22,31.43841517]
[1740712844764,7.6831,130.27,130.22,31.43841517]
[1740712844955,8.00890362,130.28,130.22,31.43841517]
[1740712846364,8.00890362,130.28,130.21,7.6862]
[1740712846365,7.6836,130.27,130.21,7.6862]
[1740712846565,7.6836,130.27,130.2,208.58]
[1740712846765,0.0565954,130.25,130.2,208.58]
[1740712847268,0.0565954,130.25,130.21,7.6865]
[1740712847670,0.0565954,130.25,130.2,208.58]
[1740712848969,0.0565954,130.25,130.22,7.6856]
[1740712849272,0.0565954,130.25,130.2,208.58]
[1740712849867,0.0565954,130.25,130.21,7.6862]
[1740712850067,0.0565954,130.25,130.2,190.53445951]
[1740712850765,0.0565954,130.25,130.2,198.22225951]
[1740712851069,0.0565954,130.25,130.2,190.53445951]
[1740712852671,0.0565954,130.25,130.15,1.4422]
[1740712852869,7.686,130.24,130.15,1.4422]
[1740712853072,190.0,130.27,130.13,4.1117]
[1740712853275,0.05234315,130.21,130.13,4.1117]
[1740712853585,7.6884,130.2,130.13,4.1117]
[1740712853773,0.05736918,130.18,130.12,216.4523]
[1740712854378,0.05736918,130.18,130.12,208.76]
[1740712854882,3.85746918,130.18,130.12,208.76]
[1740712855078,11.54706918,130.18,130.12,216.4526]
[1740712855278,11.54706918,130.18,130.12,208.76]
[1740712855581,3.85746918,130.18,130.12,208.76]
[1740712856178,3.85746918,130.18,130.12,216.4525]
[1740712856481,3.85746918,130.18,130.12,208.76]
[1740712856682,0.05736918,130.18,130.14,7.6915]
[1740712856881,0.05736918,130.18,130.12,208.76]
[1740712857287,0.05736918,130.18,130.14,7.6912]
[1740712857581,0.05736918,130.18,130.12,208.76]
[1740712857788,0.05736918,130.18,130.16,7.6899]
[1740712857985,0.05736918,130.18,130.13,1.6371]
[1740712858386,0.05736918,130.18,130.17,7.6897]
[1740712858588,0.05736918,130.18,130.13,1.6371]
[1740712858887,0.05736918,130.18,130.13,1.4535]
[1740712859387,0.05736918,130.18,130.12,208.76]
[1740712859989,0.05736918,130.18,130.13,7.6917]
[1740712860492,0.05736918,130.18,130.14,7.6914]
[1740712861190,0.05736918,130.18,130.16,7.6903]
[1740712861492,0.05736918,130.18,130.12,208.76]
[1740712862089,0.05736918,130.18,130.15,7.6905]
[1740712863386,0.05736918,130.18,130.12,208.76]
[1740712863889,0.05736918,130.18,130.14,7.6915]
[1740712864390,0.05736918,130.18,130.12,208.76]
[1740712864588,0.05736918,130.18,130.13,7.6919]
[1740712864993,3.98336918,130.18,130.12,216.4525]
[1740712865192,3.8879,130.17,130.12,7.6925]
[1740712865491,3.8879,130.17,130.09,7.6941]
[1740712865692,3.8339,130.16,130.09,7.6941]
[1740712865890,3.8339,130.16,130.04,214.6547]
[1740712866091,0.05696149,130.14,130.07,7.6953]
[1740712866292,7.6927,130.12,130.04,213.0194]
[1740712866589,3.926,130.11,130.04,208.9]
[1740712866990,0.05380978,130.09,130.05,7.6967]
[1740712867188,0.05380978,130.09,130.04,208.9]
[1740712867988,0.05380978,130.09,129.99,4.1194]
[1740712868190,7.6961,130.07,130.0,7.6996]
[1740712868585,7.9213,130.1,130.0,7.6996]
[1740712868586,0.05776431,130.05,130.0,7.6996]
[1740712868787,0.05776431,130.05,129.96,208.94]
[1740712868987,7.9213,130.1,129.95,115.00989052]
[1740712869194,100.41508135,130.09,129.95,108.77849052]
[1740712869396,0.05372543,130.04,129.95,96.31029052]
[1740712869795,1.41508135,130.05,129.93,7.7034]
[1740712869987,0.05239291,130.01,129.88,103.27477535]
[1740712870397,15.82,130.06,129.88,87.45477535]
[1740712870698,0.05733815,129.96,129.88,87.45477535]
[1740712870892,0.05733815,129.96,129.95,7.7028]
[1740712871089,15.82,130.06,129.89,4.0441]
[1740712871293,0.05091493,129.97,129.91,7.7048]
[1740712871693,7.7009,129.99,129.91,7.7048]
[1740712871894,0.0538843,129.95,129.89,4.0441]
[1740712872096,15.82,130.06,129.89,4.0441]
[1740712872494,7.6986,130.02,129.91,0.05270101]
[1740712872793,15.82,130.06,129.92,1.53940886]
[1740712873001,1.41503575,130.05,129.92,1.53940886]
[1740712873394,0.05784664,130.0,129.97,0.05397224]
[1740712873593,7.701,129.98,129.97,0.05397224]
[1740712873798,4.1168,129.99,129.92,1.53940886]
[1740712873994,4.16838834,129.99,129.96,0.05475934]
[1740712874199,27.24838834,129.99,129.92,1.53940886]
[1740712874395,4.16838834,129.99,129.92,1.53940886]
[1740712874997,4.1081,129.98,129.92,1.53940886]
[1740712875198,7.7033,129.95,129.92,1.53940886]
[1740712875399,3.8711,129.97,129.92,1.53940886]
[1740712875597,0.05598235,129.95,129.92,1.53940886]
[1740712876893,0.05598235,129.95,129.94,7.7034]
[1740712877095,0.05598235,129.95,129.92,1.53940886]
[1740712877701,0.05598235,129.95,129.91,3.97583294]
[1740712878106,0.05598235,129.95,129.92,7.704]
[1740712878303,190.0,130.08,129.91,27.05583294]
[1740712878601,1.41476494,130.07,129.91,3.97583294]
[1740712878795,7.6979,130.04,129.96,7.7017]
[1740712878993,194.0827,130.08,129.97,1.53881664]
[1740712879394,1.41489344,130.07,129.97,1.53881664]
[1740712879602,0.05018185,130.04,130.01,0.04993029]
[1740712879809,0.05018185,130.04,129.97,1.53881664]
[1740712880505,7.6998,130.01,129.97,1.53881664]
[1740712880803,0.05018185,130.04,129.97,1.53881664]
[1740712881103,190.0,130.06,129.97,1.53881664]
[1740712881305,0.0516745,130.02,129.97,1.53881664]
[1740712881701,0.0516745,130.02,129.98,7.7008]
[1740712881904,0.0516745,130.02,129.97,1.53881664]
[1740712882406,0.0516745,130.02,129.98,7.7006]
[1740712882607,0.0516745,130.02,129.99,1.53857989]
[1740712883004,190.0,130.06,129.99,1.53857989]
[1740712883205,0.05238373,130.02,129.99,1.53857989]
[1740712883907,7.75098373,130.02,129.99,1.53857989]
[1740712884902,7.6992,130.01,129.99,1.53857989]
[1740712885098,0.05238373,130.02,129.99,1.53857989]
[1740712885503,0.05238373,130.02,129.91,3.97583294]
[1740712885504,7.7008,129.99,129.94,7.7033]
[1740712885906,3.8147,130.01,129.91,3.97583294]
[1740712886103,7.75582851,129.98,129.93,7.7035]
[1740712886605,0.05472851,129.98,129.93,7.7035]
[1740712886804,0.05472851,129.98,129.81,108.9288058]
[1740712886805,0.05472851,129.98,129.82,15.82]
[1740712887006,0.05472851,129.98,129.85,11.9721]
[1740712887212,3.8782,130.0,129.88,7.7068]
[1740712887509,0.05413267,129.93,129.88,7.7068]
[1740712887709,0.05413267,129.93,129.91,7.705]
[1740712887906,0.05413267,129.93,129.85,11.9721]
[1740712888107,7.7009,129.99,129.85,11.9721]
[1740712888306,0.05506037,129.9,129.85,11.9721]
[1740712888712,3.8782,130.0,129.85,11.9721]
[1740712889010,0.05305482,129.89,129.76,209.28]
[1740712889202,7.7058,129.9,129.77,20.92625706]
[1740712889404,1.41564953,129.98,129.77,20.92625706]
[1740712889405,0.05311518,129.84,129.77,3.7418]
[1740712889912,7.7073,129.88,129.81,7.7109]
[1740712890106,15.8,129.99,129.77,19.5418]
[1740712890406,1.41603034,129.98,129.84,7.7089]
[1740712890611,5.55173034,129.98,129.85,3.7418]
[1740712890811,1.41603034,129.97,129.85,3.7418]
[1740712891011,4.1357,129.98,129.85,3.7418]
[1740712891403,4.1357,129.98,129.88,7.7067]
[1740712891713,0.05682537,129.93,129.9,0.05634972]
[1740712892113,0.05682537,129.93,129.69,23.01]
[1740712892309,7.7083,129.86,129.71,4.017]
[1740712892701,8.1238,129.92,129.71,4.017]
[1740712893008,1.41659797,129.91,129.72,17.19065886]
[1740712893205,1.41659797,129.91,129.77,7.7129]
[1740712893406,0.05258705,129.83,129.78,7.7471]
[1740712894009,8.1238,129.92,129.79,4.017]
[1740712894310,7.7052,129.91,129.79,4.017]
[1740712894509,4.0181,129.92,129.8,15.8]
[1740712894706,4.0762,129.98,129.8,15.8]
[1740712894707,4.1057,129.97,129.8,15.8]
[1740712894902,7.7029,129.95,129.8,15.8]
[1740712895107,8.0311,129.97,129.8,15.8]
[1740712895307,0.05571934,129.9,129.87,0.04872572]
[1740712895810,8.0311,129.97,129.8,15.8]
[1740712896208,0.05619719,129.9,129.87,0.05322178]
[1740712896414,3.9254,129.97,129.87,0.05322178]
[1740712896614,3.9254,129.97,129.81,1.3814037]
[1740712896911,3.9254,129.97,129.8,15.8]
[1740712897214,3.9863,130.08,129.81,1.38124518]
[1740712897413,9.44962639,130.07,129.81,1.38124518]
[1740712897616,1.41512639,130.06,129.81,1.38124518]
[1740712897913,0.05373859,129.96,129.93,0.05220326]
[1740712898207,190.0,130.06,129.91,225.2]
[1740712898412,8.0345,130.07,129.92,8.134]
[1740712898613,1.41498426,130.06,129.92,8.134]
[1740712898813,5.52408426,130.06,129.92,8.134]
[1740712899007,7.6991,130.02,129.93,7.7038]
[1740712899204,190.0,130.05,129.93,7.7038]
[1740712899408,7.75178169,129.99,129.96,0.04918636]
[1740712899607,0.05138169,129.99,129.96,0.04918636]
[1740712899917,191.41537478,130.04,129.91,209.4]
[1740712900110,0.05887089,129.99,129.96,0.04963057]
[1740712900615,0.05887089,129.99,129.91,209.4]
[1740712900816,0.05887089,129.99,129.96,0.05849244]
[1740712901010,190.0,130.04,129.96,0.05849244]
[1740712901208,0.05230303,129.99,129.96,0.05849244]
[1740712901513,0.05230303,129.99,129.91,209.4]
[1740712901818,7.6981,130.03,129.91,191.36319308]
[1740712902319,7.6981,130.03,129.94,7.7033]
[1740712902621,7.6981,130.03,129.95,4.1326]
[1740712902817,190.0,130.04,129.95,4.1326]
[1740712903120,0.0506071,130.0,129.98,0.05394241]
[1740712904019,7.7004,129.99,129.98,0.05394241]
[1740712904219,0.0506071,130.0,129.92,3.8609]
[1740712904412,4.1467,129.99,129.92,3.8609]
[1740712904612,4.1467,129.99,129.91,191.36319308]
[1740712904822,3.9206,129.98,129.91,191.36319308]
[1740712905018,4.1467,129.99,129.91,191.36319308]
[1740712905217,3.9206,130.04,129.91,191.36319308]
[1740712905522,0.05202569,129.96,129.94,0.05016448]
[1740712905820,7.6997,130.01,129.91,207.14319308]
[1740712906023,0.05729942,129.96,129.94,0.05113339]
[1740712906218,7.6997,130.01,129.94,0.05113339]
[1740712907419,7.6988,130.02,129.94,0.05113339]
[1740712907624,0.05530496,129.99,129.94,0.05113339]
[1740712907827,0.05530496,129.99,129.91,207.14319308]
[1740712908015,0.05530496,129.99,129.95,0.05615398]
[1740712908220,4.1467,130.06,129.95,4.05515398]
[1740712908516,4.1467,130.06,129.95,3.999]
[1740712908517,0.057383,129.98,129.95,3.999]
[1740712908718,7.6988,130.02,129.99,0.05163244]
[1740712909026,7.6988,130.02,129.95,3.999]
[1740712909218,0.05575529,130.02,129.99,0.04837598]
[1740712909826,7.6992,130.01,129.99,0.04837598]
[1740712911328,7.6998,130.0,129.99,0.04837598]
[1740712911516,0.05575529,130.02,129.99,0.04837598]
[1740712911921,7.6998,130.0,129.99,0.04837598]
[1740712913523,0.05575529,130.02,129.99,0.04837598]
[1740712916128,7.6996,130.01,129.99,0.04837598]
[1740712916528,0.05575529,130.02,129.99,0.04837598]
[1740712916830,7.75445529,130.02,129.99,0.04837598]
[1740712917031,0.05575529,130.02,129.99,0.04837598]
[1740712919633,0.05575529,130.02,129.94,3.9541]
[1740712919832,1.41515263,130.05,129.94,3.9541]
[1740712920133,7.7009,129.99,129.94,3.9541]
[1740712920334,7.7009,129.99,129.94,11.657]
[1740712920931,7.7017,129.97,129.95,0.05641592]
[1740712921130,0.05617092,129.98,129.95,0.05641592]
[1740712921331,1.41526578,130.04,129.91,191.36319308]
[1740712921535,0.0515832,129.98,129.95,0.05811967]
[1740712921728,7.704,129.93,129.89,35.39649971]
[1740712921931,213.01,130.01,129.89,31.51299971]
[1740712922239,195.37535634,130.0,129.86,3.8835]
[1740712922432,1.41575634,129.99,129.89,7.7062]
[1740712922632,7.7044,129.93,129.86,3.8835]
[1740712922827,0.05503355,129.95,129.86,3.8835]
[1740712923137,190.0,129.98,129.86,7.7077]
[1740712923331,0.05392267,129.92,129.83,324.38447506]
[1740712923526,0.05392267,129.92,129.83,115.08447506]
[1740712923732,191.41612677,129.95,129.83,115.08447506]
[1740712923929,0.05354512,129.89,129.83,115.08447506]
[1740712924130,0.05354512,129.89,129.83,108.86627506]
[1740712924331,7.7093,129.84,129.83,69.69757506]
[1740712924531,7.7093,129.84,129.83,6.60338893]
[1740712924731,23.1,129.84,129.74,125.37849451]
[1740712924929,7.7116,129.81,129.74,125.37849451]
[1740712925143,15.76,129.89,129.74,125.37849451]
[1740712925438,7.714,129.77,129.74,125.37849451]
[1740712925635,128.05325979,129.89,129.74,125.37849451]
[1740712925836,0.05836522,129.77,129.74,125.37849451]
[1740712926138,1.41765245,129.87,129.74,125.37849451]
[1740712926342,0.05763595,129.77,129.74,125.37849451]
[1740712926842,128.05325979,129.89,129.74,125.37849451]
[1740712927035,7.7094,129.84,129.74,125.37849451]
[1740712927341,112.29325979,129.89,129.74,141.13849451]
[1740712927537,225.1,129.95,129.75,4.0935]
[1740712927743,1.41638662,129.94,129.75,4.0935]
[1740712928041,1.41638662,129.94,129.76,7.8333]
[1740712928234,3.263e-05,129.86,129.85,7.7087]
[1740712928437,166.29269884,129.86,129.85,7.7087]
[1740712928641,128.94569884,129.86,129.84,8.215]
[1740712928840,128.94569884,129.86,129.76,3.7331]
[1740712929639,0.05887234,129.82,129.8,0.05140651]
[1740712930939,23.17887234,129.82,129.62,225.2]
[1740712931144,0.05887234,129.82,129.62,225.2]
[1740712931441,3.9808,129.81,129.63,1.38341078]
[1740712931651,3.7563,129.8,129.63,1.38341078]
[1740712932049,0.05379412,129.73,129.7,0.05413686]
[1740712932249,3.7563,129.86,129.7,0.05413686]
[1740712932545,190.0,129.87,129.7,1.38341078]
[1740712932748,42.29785809,129.95,129.7,1.38341078]
[1740712932749,201.7318,129.92,129.7,1.38341078]
[1740712933047,42.29785809,129.95,129.71,9.42465853]
[1740712933243,42.29785809,129.95,129.72,1.38259949]
[1740712933449,0.04866552,129.84,129.82,0.0514245]
[1740712933649,42.29785809,129.95,129.82,0.0514245]
[1740712933848,42.29785809,129.95,129.8,15.76]
[1740712933849,18.27736452,129.95,129.8,15.76]
[1740712934148,10.57446452,129.95,129.8,15.76]
[1740712935049,0.05051825,129.89,129.86,0.05603714]
[1740712935252,10.57446452,129.95,129.86,0.05603714]
[1740712935441,194.1015,129.94,129.74,19.6296]
[1740712935641,190.0,129.93,129.74,19.6296]
[1740712935840,205.76,129.92,129.74,19.6296]
[1740712936551,0.05141095,129.84,129.82,0.05670931]
[1740712936850,7.7092,129.85,129.74,19.6296]
[1740712937041,190.0,129.91,129.74,19.6296]
[1740712937246,0.05031453,129.84,129.82,0.05168302]
[1740712937643,193.975,129.9,129.74,19.6296]
[1740712937846,0.05206805,129.84,129.82,0.05427633]
[1740712938249,193.975,129.9,129.74,19.6296]
[1740712938449,0.05140054,129.84,129.82,0.05164416]
[1740712938842,193.975,129.9,129.75,4.0988]
[1740712939043,0.05533854,129.84,129.82,0.05713609]
[1740712939452,193.975,129.9,129.75,4.0988]
[1740712939643,0.05749015,129.84,129.82,0.05784833]
[1740712939948,7.7088,129.85,129.75,4.0988]
[1740712940142,0.04913144,129.84,129.82,0.05575632]
[1740712940553,190.0,129.93,129.79,15.76]
[1740712940752,190.0,129.93,129.82,0.05710967]
[1740712941051,7.705,129.92,129.8,7.7112]
[1740712941248,190.0,129.93,129.79,15.76]
[1740712941554,194.1337,129.97,129.79,15.76]
[1740712941754,4.1337,129.97,129.85,0.05263848]
[1740712941955,4.0229,129.98,129.87,7.7071]
[1740712942155,4.0816,129.99,129.88,7.9119]
[1740712942351,92.75231619,130.01,129.88,7.9119]
[1740712943155,92.75231619,130.01,129.93,0.05333666]
[1740712943156,0.0514705,129.95,129.93,0.05333666]
[1740712943559,100.45161619,130.01,129.93,0.05333666]
[1740712943854,0.05198194,129.95,129.93,0.05333666]
[1740712944154,0.05858549,129.95,129.93,0.05333666]
[1740712946354,4.0229,130.01,129.93,0.05333666]
[1740712946853,4.0229,130.01,129.88,7.9119]
[1740712946854,4.0816,130.03,129.88,7.9119]
[1740712947553,0.05280604,129.97,129.94,0.05084569]
[1740712947965,11.7801,130.03,129.93,7.7039]
[1740712948155,0.04917157,129.97,129.94,0.05599593]
[1740712948361,3.8712,130.05,129.94,0.05599593]
[1740712948561,3.8712,130.05,129.93,15.74]
[1740712949457,3.8712,130.05,129.98,0.05933228]
[1740712949657,0.05848914,130.0,129.88,7.9119]
[1740712949857,15.74,130.0,129.88,7.9119]
[1740712950055,7.7042,129.93,129.84,209.5]
[1740712950555,3.7556,129.98,129.84,209.5]
[1740712950758,0.05489922,129.9,129.87,0.05324322]
[1740712951155,193.7556,129.98,129.84,209.5]
[1740712951361,0.05000299,129.9,129.87,0.0508986]
[1740712951755,193.7556,129.98,129.84,209.5]
[1740712951962,190.0,129.97,129.87,0.05250394]
[1740712952163,0.05544406,129.92,129.86,7.708]
[1740712952657,0.05544406,129.92,129.84,209.5]
[1740712952658,0.05544406,129.92,129.85,7.7081]
[1740712953064,7.7038,129.94,129.88,0.05003799]
[1740712953261,0.05120408,129.9,129.88,7.75683799]
[1740712953462,3.7556,129.98,129.88,0.05003799]
[1740712953659,3.7556,129.98,129.84,187.48076311]
[1740712954367,11.457,129.98,129.89,7.7058]